bitfinex-derivatives/quotes_SOLF0:USTF0_20250413
["timestamp","ask_amount","ask_price","bid_price","bid_amount"]
[1744573939766,0.05483111,128.16,128.12,0.05745787]
[1744573940859,36.96900029,128.15,128.12,0.05745787]
[1744573941059,7.8075,128.11,128.07,7.8092]
[1744573941259,54.92,128.12,128.06,2.139]
[1744573941964,54.92,128.12,128.03,57.0245]
[1744573942366,7.86199773,128.09,128.06,0.05292953]
[1744573942554,0.05359773,128.09,128.06,0.05292953]
[1744573943371,0.05359773,128.09,128.06,7.86312953]
[1744573943765,0.05359773,128.09,128.06,0.05292953]
[1744573944470,7.86199773,128.09,128.06,0.05292953]
[1744573944661,0.05359773,128.09,128.06,0.05292953]
[1744573945464,7.809,128.08,128.06,0.05292953]
[1744573946067,0.05359773,128.09,128.06,0.05292953]
[1744573946564,0.05359773,128.09,128.07,7.8092]
[1744573946763,0.05359773,128.09,128.06,0.05292953]
[1744573948267,54.92,128.12,128.09,7.8081]
[1744573948869,54.96,128.16,128.12,7.8064]
[1744573949369,7.8037,128.17,128.13,7.8057]
[1744573949570,0.0569017,128.15,128.13,0.05763931]
[1744573949868,0.0569017,128.15,128.14,7.8053]
[1744573950266,54.96,128.2,128.13,0.05763931]
[1744573950670,54.96,128.2,128.13,2.14693931]
[1744573950972,54.96,128.2,128.17,7.8034]
[1744573951369,55.01071106,128.2,128.17,7.8034]
[1744573951568,55.01071106,128.2,128.17,0.0544579]
[1744573952364,55.01071106,128.2,128.18,7.8023]
[1744573952773,55.01071106,128.2,128.17,0.0544579]
[1744573952774,0.05071106,128.2,128.17,0.0544579]
[1744573952974,0.05071106,128.2,128.19,7.8023]
[1744573953677,54.94,128.24,128.21,7.8007]
[1744573953873,7.7976,128.27,128.18,36.96900029]
[1744573954076,54.94,128.28,128.19,2.1086]
[1744573954374,7.8006,128.22,128.15,54.94]
[1744573954575,7.8006,128.22,128.15,57.0486]
[1744573954780,0.05720031,128.2,128.18,7.8023]
[1744573954974,0.05720031,128.2,128.17,0.04948952]
[1744573955777,0.05720031,128.2,128.17,7.85278952]
[1744573956077,0.05720031,128.2,128.17,0.04948952]
[1744573956977,0.05720031,128.2,128.19,7.8023]
[1744573957177,0.05720031,128.2,128.17,0.04948952]
[1744573957879,57.1083,128.28,128.17,0.04948952]
[1744573958173,57.1083,128.28,128.17,4.1378]
[1744573958377,57.1083,128.28,128.22,7.8004]
[1744573958877,7.7983,128.26,128.22,7.8004]
[1744573959077,7.84943911,128.26,128.24,0.05125211]
[1744573959979,0.05113911,128.26,128.24,7.85035211]
[1744573960180,0.05113911,128.26,128.24,0.05125211]
[1744573960480,7.7986,128.25,128.24,0.05125211]
[1744573961582,0.05113911,128.26,128.24,0.05125211]
[1744573962479,7.7986,128.25,128.24,0.05125211]
[1744573963371,7.8011,128.21,128.17,4.1378]
[1744573963569,36.96900029,128.21,128.11,364.0]
[1744573963778,36.96900029,128.18,128.1,36.35337429]
[1744573964076,54.92,128.17,128.1,36.35337429]
[1744573964575,0.05015577,128.15,128.12,0.05228033]
[1744573964775,0.05015577,128.15,128.14,7.8053]
[1744573965976,7.8028,128.19,128.12,0.05228033]
[1744573966382,54.94,128.21,128.12,0.05228033]
[1744573966577,54.94,128.21,128.12,37.02128062]
[1744573966883,54.94,128.21,128.19,7.8019]
[1744573967175,0.05650221,128.18,128.15,0.0585585]
[1744573967383,7.8029,128.18,128.15,7.8044]
[1744573967683,0.05131876,128.18,128.15,7.85871776]
[1744573967880,0.05131876,128.18,128.17,7.8035]
[1744573968583,54.94,128.21,128.2,7.8017]
[1744573969084,53.58,128.25,128.19,7.8021]
[1744573969781,7.85721535,128.23,128.21,0.05057293]
[1744573970377,0.05691535,128.23,128.21,0.05057293]
[1744573970880,0.05691535,128.23,128.22,7.8004]
[1744573971076,0.05691535,128.23,128.21,0.05057293]
[1744573971478,7.8004,128.22,128.21,0.05057293]
[1744573971793,0.05691535,128.23,128.21,0.05057293]
[1744573972385,0.05691535,128.23,128.1,36.96900029]
[1744573972581,7.8018,128.2,128.16,7.8038]
[1744573972781,90.54900029,128.24,128.16,7.8038]
[1744573972977,90.54900029,128.24,128.11,4.0334]
[1744573973582,0.05099557,128.19,128.18,7.8029]
[1744573973780,90.54900029,128.24,128.13,39.08620029]
[1744573973974,0.05754322,128.2,128.13,403.08620029]
[1744573974175,0.05754322,128.2,128.17,7.85414032]
[1744573974677,7.85944322,128.2,128.17,7.85414032]
[1744573975375,0.05754322,128.2,128.17,0.05114032]
[1744573975574,53.58,128.24,128.17,0.05114032]
[1744573976386,90.54900029,128.24,128.17,0.05114032]
[1744573976683,36.96900029,128.21,128.17,0.05114032]
[1744573976884,7.8028,128.19,128.17,0.05114032]
[1744573977085,36.96900029,128.21,128.17,0.05114032]
[1744573977278,0.0512787,128.2,128.17,0.05114032]
[1744573977479,7.8534787,128.2,128.17,0.05114032]
[1744573978485,0.0512787,128.2,128.18,7.8026]
[1744573979290,53.58,128.24,128.17,0.05114032]
[1744573979490,36.96900029,128.26,128.17,0.05114032]
[1744573979685,7.7995,128.24,128.2,7.8012]
[1744573979988,7.7995,128.24,128.13,657.08620029]
[1744573980387,670.06,128.28,128.16,36.96900029]
[1744573980592,89.00900029,128.32,128.19,36.96900029]
[1744573980790,52.04,128.32,128.2,2.1524]
[1744573981285,7.796,128.3,128.2,2.1524]
[1744573981791,0.05679717,128.26,128.24,0.05918375]
[1744573982091,59.8345,128.32,128.23,54.1293]
[1744573982293,59.8345,128.32,128.23,418.1293]
[1744573982591,7.7952,128.31,128.23,418.1293]
[1744573983087,0.05637239,128.28,128.26,0.05184951]
[1744573983291,618.0,128.35,128.23,418.1293]
[1744573984394,0.05108437,128.3,128.28,0.05782018]
[1744573984692,618.0,128.35,128.28,0.05782018]
[1744573985196,7.7953,128.31,128.28,0.05782018]
[1744573986495,7.7945,128.32,128.28,0.05782018]
[1744573986691,0.05822534,128.33,128.28,0.05782018]
[1744573986993,7.7952,128.31,128.28,0.05782018]
[1744573987188,619.07661937,128.43,128.28,89.04682047]
[1744573987385,38.32561966,128.43,128.31,36.96900029]
[1744573987584,36.96900029,128.43,128.31,36.96900029]
[1744573988090,7.7894,128.41,128.31,36.96900029]
[1744573988292,36.96900029,128.43,128.31,36.96900029]
[1744573988485,0.0502494,128.37,128.35,0.05936045]
[1744573988793,36.96900029,128.43,128.32,2.1429]
[1744573988991,0.05717573,128.37,128.35,0.05949158]
[1744573989295,36.96900029,128.43,128.32,366.1429]
[1744573989494,0.05801468,128.37,128.35,0.05341492]
[1744573989695,36.96900029,128.37,128.29,4.0984]
[1744573989886,36.96900029,128.37,128.35,0.05500203]
[1744573990089,7.7938,128.33,128.29,4.0984]
[1744573990595,0.05493441,128.32,128.3,0.05644321]
[1744573990786,7.7947,128.32,128.3,0.05644321]
[1744573990996,0.05533723,128.32,128.3,0.05644321]
[1744573992897,7.7923,128.36,128.3,0.05644321]
[1744573992898,4.2611,128.38,128.3,0.05644321]
[1744573993197,7.7914,128.37,128.26,2.1517]
[1744573993397,7.7914,128.37,128.26,366.1517]
[1744573993598,52.02,128.39,128.28,36.96900029]
[1744573993899,52.02,128.39,128.26,366.1517]
[1744573994098,0.05190401,128.35,128.32,0.05069268]
[1744573995796,52.02,128.39,128.32,0.05069268]
[1744573995992,654.50900029,128.41,128.32,0.05069268]
[1744573996396,654.50900029,128.41,128.31,2.1245]
[1744573996802,54.0686,128.43,128.31,403.09350029]
[1744573996999,91.14470029,128.47,128.35,0.05911759]
[1744573997198,91.14470029,128.47,128.34,452.96900029]
[1744573997702,7.7863,128.46,128.34,452.96900029]
[1744573998000,91.14470029,128.47,128.34,452.96900029]
[1744573998201,54.1757,128.47,128.39,0.05194565]
[1744573998501,59.7854,128.47,128.38,4.0701]
[1744573998701,59.7854,128.47,128.42,0.05153767]
[1744573998903,52.0,128.47,128.42,0.05153767]
[1744573999301,7.7844,128.49,128.42,0.05153767]
[1744573999601,36.96900029,128.5,128.39,51.98]
[1744574000102,36.96900029,128.5,128.44,0.05046739]
[1744574001104,7.7853,128.48,128.44,0.05046739]
[1744574001604,7.7843,128.49,128.44,0.05046739]
[1744574002699,36.96900029,128.5,128.44,0.05046739]
[1744574003204,7.7845,128.49,128.44,0.05046739]
[1744574003403,36.96900029,128.5,128.44,0.05046739]
[1744574004206,7.7853,128.47,128.44,0.05046739]
[1744574004406,51.96,128.46,128.38,4.0701]
[1744574004705,7.7913,128.37,128.33,2.1573]
[1744574005006,36.96900029,128.38,128.26,56.1069]
[1744574005205,88.92900029,128.38,128.26,422.2642]
[1744574005406,7.7916,128.37,128.26,422.2642]
[1744574005706,0.05046739,128.33,128.31,0.05685637]
[1744574007108,0.05046739,128.33,128.32,7.7944]
[1744574007313,51.96,128.38,128.31,0.05685637]
[1744574007703,36.96900029,128.41,128.31,0.05685637]
[1744574007909,36.96900029,128.41,128.31,51.62]
[1744574008108,36.96900029,128.41,128.32,2.1739]
[1744574008309,7.7908,128.38,128.35,7.7922]
[1744574008509,36.96900029,128.41,128.35,0.05787863]
[1744574009010,7.7906,128.39,128.35,0.05787863]
[1744574009611,51.96,128.42,128.35,0.05787863]
[1744574009808,36.96900029,128.41,128.35,0.05787863]
[1744574010109,7.7917,128.37,128.35,0.05787863]
[1744574010309,36.96900029,128.41,128.35,0.05787863]
[1744574011301,7.7919,128.36,128.35,0.05787863]
[1744574011608,0.05410649,128.37,128.27,53.6096]
[1744574011810,7.7922,128.36,128.27,53.6096]
[1744574012107,36.96900029,128.38,128.27,53.6096]
[1744574012610,0.04978259,128.34,128.31,7.84605561]
[1744574012799,0.04978259,128.34,128.31,0.05165561]
[1744574013613,0.04978259,128.34,128.33,7.7938]
[1744574013910,0.04978259,128.34,128.31,0.05165561]
[1744574015112,7.84318259,128.34,128.31,0.05165561]
[1744574015306,0.04978259,128.34,128.31,0.05165561]
[1744574017006,37.01878288,128.34,128.23,51.64]
[1744574017208,7.7967,128.29,128.23,51.64]
[1744574017411,51.64,128.32,128.23,51.64]
[1744574017815,7.7965,128.29,128.26,7.7976]
[1744574018016,36.96900029,128.31,128.23,51.64]
[1744574018211,0.06000629,128.29,128.26,0.05125316]
[1744574018413,36.96900029,128.28,128.17,36.35337429]
[1744574018612,51.64,128.27,128.17,36.35337429]
[1744574018814,51.64,128.27,128.24,7.7991]
[1744574019005,51.64,128.27,128.17,36.35337429]
[1744574019610,0.05980914,128.23,128.21,0.05245773]
[1744574020009,0.05980914,128.23,128.21,7.85325773]
[1744574020414,7.8004,128.22,128.21,0.05245773]
[1744574021611,0.05980914,128.23,128.21,7.85305773]
[1744574021811,0.05980914,128.23,128.21,0.05245773]
[1744574022216,0.05980914,128.23,128.22,7.8004]
[1744574022711,38.98160029,128.31,128.21,0.05245773]
[1744574022908,2.0126,128.31,128.26,7.7975]
[1744574023113,2.0126,128.31,128.19,452.62900029]
[1744574023415,7.7956,128.3,128.19,452.62900029]
[1744574023719,2.0126,128.31,128.22,36.96900029]
[1744574023922,2.0126,128.31,128.23,6.1658]
[1744574024114,0.05519904,128.26,128.23,0.05554801]
[1744574024316,0.05519904,128.26,128.2,6.1658]
[1744574024516,0.05519904,128.26,128.23,0.05059323]
[1744574025021,0.05519904,128.26,128.25,7.7986]
[1744574025315,0.05519904,128.26,128.23,0.05059323]
[1744574025519,7.85359904,128.26,128.23,7.85029323]
[1744574025921,0.05519904,128.26,128.23,0.05059323]
[1744574026420,0.05519904,128.26,128.24,7.7991]
[1744574026619,0.05519904,128.26,128.23,0.05059323]
[1744574027723,7.7992,128.24,128.23,0.05059323]
[1744574028117,2.0857,128.25,128.2,7.8014]
[1744574028316,2.0857,128.25,128.17,2.0047]
[1744574028513,7.7977,128.27,128.17,2.0047]
[1744574028718,51.68,128.28,128.17,2.0047]
[1744574029222,0.05598355,128.24,128.21,0.05945907]
[1744574029621,0.05598355,128.24,128.22,7.8004]
[1744574030016,0.05598355,128.24,128.23,7.7998]
[1744574030418,0.05598355,128.24,128.21,0.05945907]
[1744574031221,0.05598355,128.24,128.23,7.7998]
[1744574031723,0.05598355,128.24,128.21,0.05945907]
[1744574032425,0.05598355,128.24,128.22,7.8004]
[1744574033016,37.02498384,128.24,128.15,51.68]
[1744574033220,36.96900029,128.24,128.15,51.68]
[1744574033423,654.66900029,128.27,128.15,51.68]
[1744574033622,654.66900029,128.27,128.16,36.96900029]
[1744574033824,654.66900029,128.27,128.15,51.68]
[1744574034024,36.96900029,128.24,128.15,51.68]
[1744574034228,7.8011,128.21,128.18,7.8026]
[1744574034425,0.05516415,128.22,128.2,0.04986204]
[1744574034625,36.96900029,128.24,128.15,51.68]
[1744574034827,0.05771107,128.2,128.18,7.8025]
[1744574035126,0.05771107,128.2,128.14,2.0464]
[1744574035327,0.05771107,128.2,128.18,0.04923595]
[1744574037529,0.05771107,128.2,128.11,53.8606]
[1744574037728,36.96900029,128.21,128.11,53.8606]
[1744574038131,55.7337,128.23,128.11,53.8606]
[1744574038536,7.8034,128.18,128.14,7.805]
[1744574038737,7.86106469,128.18,128.16,0.05241355]
[1744574040741,0.05766469,128.18,128.16,0.05241355]
[1744574041442,0.05766469,128.18,128.17,7.8035]
[1744574041839,0.05766469,128.18,128.16,0.05241355]
[1744574042041,51.69766469,128.18,128.08,4.2499]
[1744574042235,51.64,128.18,128.08,4.2499]
[1744574042440,7.805,128.15,128.12,7.8062]
[1744574043243,7.85577993,128.15,128.12,7.86076254]
[1744574043841,0.05077993,128.15,128.14,7.8053]
[1744574045343,0.05077993,128.15,128.13,7.8056]
[1744574045545,0.05077993,128.15,128.12,0.05456254]
[1744574045741,7.8053,128.14,128.12,0.05456254]
[1744574045941,0.05077993,128.15,128.12,0.05456254]
[1744574046445,7.85557993,128.15,128.12,7.86096254]
[1744574046645,0.05077993,128.15,128.12,0.05456254]
[1744574047746,2.0528,128.22,128.12,37.29640767]
[1744574047945,7.8035,128.17,128.09,37.24184513]
[1744574048146,2.0528,128.22,128.08,368.2499]
[1744574048351,37.24184513,128.2,128.08,368.2499]
[1744574048553,37.24184513,128.2,128.12,7.806]
[1744574048748,37.24184513,128.2,128.08,368.2499]
[1744574048948,0.05975386,128.17,128.15,0.05485422]
[1744574049153,7.8044,128.16,128.15,0.05485422]
[1744574049449,0.05975386,128.17,128.15,0.05485422]
[1744574049642,7.8041,128.16,128.15,0.05485422]
[1744574050147,0.05975386,128.17,128.15,0.05485422]
[1744574050451,51.66,128.24,128.15,45.09669935]
[1744574050749,617.7,128.27,128.16,4.232]
[1744574051248,7.8002,128.23,128.2,7.8015]
[1744574051552,0.05375264,128.23,128.2,0.05482346]
[1744574051752,0.05375264,128.23,128.22,7.8]
[1744574052451,51.66,128.28,128.2,0.05482346]
[1744574052652,51.66,128.28,128.18,88.90184513]
[1744574052850,59.457,128.28,128.18,51.66]
[1744574053150,43.35074513,128.32,128.18,51.66]
[1744574053345,57.7689,128.32,128.2,37.24184513]
[1744574053551,0.05710761,128.26,128.24,0.05609152]
[1744574053751,53.6249,128.32,128.24,0.05609152]
[1744574054052,53.6249,128.32,128.24,4.0151]
[1744574054852,7.7955,128.31,128.27,7.797]
[1744574055048,0.05877778,128.29,128.27,0.05636024]
[1744574055953,7.7968,128.28,128.27,0.05636024]
[1744574056549,7.85517778,128.29,128.27,0.05636024]
[1744574056750,0.05877778,128.29,128.27,0.05636024]
[1744574057354,7.85517778,128.29,128.27,0.05636024]
[1744574057552,0.05877778,128.29,128.27,0.05636024]
[1744574057950,0.05877778,128.29,128.22,2.1419]
[1744574058158,37.30062291,128.29,128.18,2.1419]
[1744574058349,4.1945,128.28,128.18,4.2974]
[1744574058557,7.7984,128.26,128.22,7.8001]
[1744574058855,51.64,128.27,128.18,4.2974]
[1744574059053,51.64,128.27,128.23,7.7995]
[1744574059358,0.05427301,128.24,128.23,7.7995]
[1744574060055,51.64,128.31,128.26,7.7976]
[1744574060256,51.64,128.31,128.22,0.05406065]
[1744574060556,51.64,128.31,128.19,415.66]
[1744574060855,7.796,128.3,128.19,415.66]
[1744574061046,51.64,128.31,128.2,37.24184513]
[1744574061248,0.05907259,128.26,128.23,7.8550091]
[1744574061446,0.05907259,128.26,128.23,7.7995]
[1744574061646,0.05907259,128.26,128.23,0.04916754]
[1744574061846,0.05907259,128.26,128.24,7.7992]
[1744574062451,7.8007,128.22,128.11,364.0]
[1744574062657,37.24184513,128.23,128.12,4.2553]
[1744574063057,37.24184513,128.23,128.15,7.8043]
[1744574063258,37.24184513,128.23,128.12,4.2553]
[1744574063859,7.85339954,128.19,128.16,0.04947764]
[1744574064153,0.05109954,128.19,128.16,0.04947764]
[1744574064759,0.05109954,128.19,128.18,7.8029]
[1744574064958,0.05109954,128.19,128.17,2.086]
[1744574065458,0.05109954,128.19,128.17,9.8893]
[1744574065961,0.05109954,128.19,128.18,7.8029]
[1744574066160,0.05109954,128.19,128.17,2.086]
[1744574066555,7.8005,128.22,128.17,2.086]
[1744574066761,51.64,128.24,128.17,2.086]
[1744574067061,7.8012,128.21,128.17,2.086]
[1744574067258,51.64,128.24,128.17,2.086]
[1744574067856,0.05577065,128.22,128.19,0.05317441]
[1744574068255,74.45713003,128.29,128.19,0.05317441]
[1744574068460,74.45713003,128.29,128.17,53.646]
[1744574068861,7.7984,128.26,128.22,7.8001]
[1744574069163,74.45713003,128.29,128.22,7.8001]
[1744574069362,0.03567059,128.25,128.23,0.0493752]
[1744574070163,7.83447059,128.25,128.23,0.0493752]
[1744574070766,0.03567059,128.25,128.23,0.0493752]
[1744574071268,51.56,128.29,128.23,0.0493752]
[1744574071856,59.3563,128.29,128.25,7.7981]
[1744574072466,59.3563,128.29,128.26,0.05878823]
[1744574072858,7.7969,128.28,128.26,0.05878823]
[1744574073572,7.7974,128.27,128.26,0.05878823]
[1744574074161,7.7969,128.28,128.26,0.05878823]
[1744574074362,640.81713003,128.31,128.26,0.05878823]
[1744574074363,617.92,128.31,128.26,0.05878823]
[1744574074567,51.54,128.33,128.26,0.05878823]
[1744574074859,7.7947,128.32,128.28,7.7967]
[1744574075265,51.54,128.33,128.29,0.04947502]
[1744574075970,7.7956,128.3,128.29,0.04947502]
[1744574076268,51.54,128.33,128.29,0.04947502]
[1744574076467,7.7947,128.32,128.29,0.04947502]
[1744574077467,51.54,128.33,128.29,7.84527502]
[1744574077868,59.3341,128.33,128.29,7.84527502]
[1744574078069,669.36,128.37,128.29,0.04947502]
[1744574078264,51.54,128.37,128.3,4.1449]
[1744574078577,55.2612,128.41,128.32,0.05282935]
[1744574078965,7.7912,128.38,128.34,7.7929]
[1744574079166,7.7912,128.38,128.35,0.05588599]
[1744574079471,55.2612,128.41,128.35,0.05588599]
[1744574079662,7.7912,128.38,128.35,0.05588599]
[1744574080368,22.89713003,128.4,128.35,0.05588599]
[1744574080572,22.89713003,128.37,128.28,364.0]
[1744574080765,51.52,128.36,128.27,4.1813]
[1744574080966,7.7927,128.35,128.27,4.1813]
[1744574081269,51.52,128.38,128.27,4.1813]
[1744574081772,0.05282665,128.34,128.31,0.05114513]
[1744574082072,0.05282665,128.34,128.31,7.84614513]
[1744574082266,0.05282665,128.34,128.31,0.05114513]
[1744574083471,7.84602665,128.34,128.31,0.05114513]
[1744574084967,0.05282665,128.34,128.31,0.05114513]
[1744574085470,7.7942,128.33,128.31,0.05114513]
[1744574085674,0.05282665,128.34,128.31,0.05114513]
[1744574086167,7.7938,128.33,128.31,0.05114513]
[1744574086971,7.7944,128.32,128.31,0.05114513]
[1744574087172,0.05282665,128.34,128.31,0.05114513]
[1744574087773,7.7938,128.33,128.31,0.05114513]
[1744574087972,0.05282665,128.34,128.31,0.05114513]
[1744574088171,7.7942,128.33,128.31,0.05114513]
[1744574088372,0.05282665,128.34,128.31,0.05114513]
[1744574088773,7.84642665,128.34,128.31,0.05114513]
[1744574088974,0.05282665,128.34,128.31,0.05114513]
[1744574090474,7.7944,128.32,128.31,0.05114513]
[1744574090675,0.05282665,128.34,128.31,0.05114513]
[1744574091276,7.84632665,128.34,128.31,0.05114513]
[1744574091576,7.84632665,128.34,128.22,38.49803003]
[1744574091577,22.89713003,128.32,128.18,364.0]
[1744574091778,7.7965,128.29,128.25,7.7983]
[1744574092778,0.05595931,128.28,128.26,0.05737729]
[1744574093175,0.05595931,128.28,128.26,7.85507729]
[1744574093481,0.05595931,128.28,128.26,0.05737729]
[1744574093681,7.85285931,128.28,128.26,0.05737729]
[1744574093980,0.05595931,128.28,128.26,0.05737729]
[1744574094378,0.05595931,128.28,128.26,7.85507729]
[1744574094583,669.0,128.33,128.26,0.05737729]
[1744574094882,7.7944,128.32,128.29,7.7959]
[1744574095787,7.84547182,128.32,128.29,7.8486251]
[1744574095979,7.7951,128.31,128.29,0.0527251]
[1744574096681,7.7956,128.3,128.29,0.0527251]
[1744574096873,0.05107182,128.32,128.29,0.0527251]
[1744574097274,7.84597182,128.32,128.29,0.0527251]
[1744574097478,0.05107182,128.32,128.29,0.0527251]
[1744574097785,7.7951,128.31,128.29,0.0527251]
[1744574098083,0.05107182,128.32,128.29,7.8489251]
[1744574098481,0.05107182,128.32,128.31,7.795]
[1744574098682,0.05107182,128.32,128.29,0.0527251]
[1744574099074,0.05107182,128.32,128.3,7.7954]
[1744574100383,0.05107182,128.32,128.29,0.0527251]
[1744574100883,0.05107182,128.32,128.3,7.7952]
[1744574101085,0.05107182,128.32,128.29,0.0527251]
[1744574101281,22.89713003,128.31,128.23,1.9988]
[1744574101478,22.89713003,128.28,128.21,2.0382]
[1744574101786,51.4,128.27,128.21,2.0382]
[1744574102185,7.799,128.25,128.22,7.8001]
[1744574102483,0.05550891,128.25,128.22,0.05764766]
[1744574104383,7.7995,128.24,128.22,0.05764766]
[1744574105384,7.7998,128.23,128.22,0.05764766]
[1744574105585,0.05550891,128.25,128.22,0.05764766]
[1744574106489,0.05550891,128.25,128.24,7.7992]
[1744574106988,0.05550891,128.25,128.23,7.7997]
[1744574107386,0.05550891,128.25,128.22,0.05764766]
[1744574108187,0.05550891,128.25,128.23,7.7994]
[1744574109089,0.05550891,128.25,128.24,7.7992]
[1744574109388,0.05550891,128.25,128.22,0.05764766]
[1744574110190,0.05550891,128.25,128.23,7.7995]
[1744574111391,0.05550891,128.25,128.22,0.05764766]
[1744574111689,0.05550891,128.25,128.24,7.7992]
[1744574112692,7.7965,128.29,128.22,0.05764766]
[1744574112693,617.48,128.31,128.22,2.10384766]
[1744574112987,625.2755,128.31,128.22,2.0462]
[1744574113294,51.4,128.32,128.25,22.89713003]
[1744574113688,51.4,128.36,128.28,22.89713003]
[1744574113991,51.4,128.36,128.29,4.2009]
[1744574114188,0.04828801,128.33,128.29,4.2009]
[1744574114389,0.04828801,128.33,128.32,7.7944]
[1744574114888,0.04828801,128.33,128.31,0.05789094]
[1744574118085,7.7944,128.32,128.31,0.05789094]
[1744574118489,0.04828801,128.33,128.31,0.05789094]
[1744574118690,0.04828801,128.33,128.32,7.7944]
[1744574119295,51.4,128.36,128.34,7.7928]
[1744574119489,51.4,128.36,128.28,22.89713003]
[1744574119693,51.4,128.36,128.26,53.449]
[1744574120397,51.4,128.36,128.3,0.05679421]
[1744574121094,59.1923,128.36,128.32,7.7939]
[1744574121497,59.1923,128.36,128.33,0.05009855]
[1744574121798,7.7929,128.35,128.33,0.05009855]
[1744574122896,59.1921,128.36,128.33,7.84349855]
[1744574123195,51.4,128.36,128.33,7.84349855]
[1744574124700,59.192,128.36,128.33,7.84349855]
[1744574125395,51.4,128.36,128.34,7.7931]
[1744574126304,51.4,128.36,128.35,7.7925]
[1744574126499,51.38,128.4,128.33,0.05009855]
[1744574126893,51.38,128.4,128.33,22.94722858]
[1744574127101,668.82,128.44,128.34,2.0104]
[1744574127494,676.6074,128.44,128.41,7.7886]
[1744574127804,668.82,128.44,128.34,2.0104]
[1744574127996,668.82,128.44,128.41,0.05012052]
[1744574128195,51.38,128.44,128.36,22.89713003]
[1744574128392,51.38,128.44,128.41,0.05427148]
[1744574128598,51.38,128.44,128.43,7.7877]
[1744574129802,51.38,128.44,128.42,7.788]
[1744574130401,51.38,128.44,128.41,7.84297148]
[1744574130598,51.38,128.44,128.41,0.05427148]
[1744574130796,22.89713003,128.43,128.32,51.22]
[1744574131000,22.89713003,128.43,128.34,2.0104]
[1744574131200,51.38,128.44,128.34,2.0104]
[1744574131705,51.38,128.44,128.37,7.791]
[1744574132101,0.05427148,128.42,128.39,0.05083561]
[1744574132605,7.7894,128.41,128.39,0.05083561]
[1744574132807,0.05427148,128.42,128.39,0.05083561]
[1744574133004,7.789,128.41,128.39,0.05083561]
[1744574133307,0.05427148,128.42,128.39,0.05083561]
[1744574134001,0.05427148,128.42,128.41,7.7889]
[1744574134202,51.22,128.48,128.39,0.05083561]
[1744574134402,51.22,128.48,128.38,4.0804]
[1744574135402,51.22,128.48,128.42,0.05772579]
[1744574136201,51.22,128.48,128.45,7.786]
[1744574136706,51.22,128.48,128.45,7.83605446]
[1744574137306,51.22,128.48,128.46,7.7857]
[1744574137609,51.2,128.54,128.45,0.05005446]
[1744574137799,51.2,128.54,128.46,7.7854]
[1744574138107,51.2,128.54,128.48,0.05466509]
[1744574138309,7.7841,128.49,128.48,0.05466509]
[1744574139314,7.7839,128.5,128.48,0.05466509]
[1744574139909,51.2,128.54,128.48,0.05466509]
[1744574140607,7.7819,128.53,128.5,7.7834]
[1744574141008,7.7819,128.53,128.5,7.83548866]
[1744574141208,7.7825,128.52,128.5,0.05208866]
[1744574141908,7.7828,128.51,128.5,0.05208866]
[1744574142211,51.2,128.54,128.44,2.0952]
[1744574142409,51.2,128.54,128.46,7.7855]
[1744574143103,7.7839,128.5,128.46,7.7855]
[1744574143306,7.7839,128.5,128.49,0.05143854]
[1744574144512,0.05208866,128.51,128.42,53.3251]
[1744574144811,22.89713003,128.52,128.43,7.7873]
[1744574145004,51.2,128.54,128.38,51.18]
[1744574145209,22.89713003,128.52,128.38,53.1923]
[1744574145607,22.89713003,128.52,128.43,7.7874]
[1744574145810,0.05541024,128.46,128.44,0.05843404]
[1744574146015,0.05017753,128.46,128.38,53.1923]
[1744574146315,51.18,128.48,128.44,0.05321817]
[1744574146513,0.05229245,128.43,128.38,53.1923]
[1744574146814,51.18,128.48,128.38,53.1923]
[1744574147115,0.05864427,128.42,128.38,53.1923]
[1744574147509,0.05864427,128.42,128.41,7.7889]
[1744574148719,51.18,128.48,128.45,7.786]
[1744574148920,22.89713003,128.52,128.4,22.89713003]
[1744574148921,51.18,128.52,128.4,22.89713003]
[1744574149222,51.18,128.52,128.41,4.1929]
[1744574149922,0.04488293,128.48,128.47,7.7853]
[1744574150114,51.18,128.52,128.47,7.7853]
[1744574150319,0.04488293,128.49,128.47,7.7853]